fUST/lending_fUST_20240606
["ID","MTS","AMOUNT","RATE_DAILY","PERIOD"]
[328607659,1717603390711,302.73262901,9.999e-05,2]
[328607757,1717603838413,-205.35702328,0.00019995,2]
[328607760,1717603838423,-384.45482979,0.00019995,2]
[328607762,1717603838432,-136.58708508,0.00019996,2]
[328607968,1717603841221,-75.98659917,0.00019996,2]
[328607970,1717603841231,-2762.28835921,0.00019996,2]
[328607972,1717603841241,-292.75700168,0.00019997,2]
[328607994,1717603843500,-652.41560683,0.00019997,2]
[328607995,1717603843510,-931.42086602,0.0002,2]
[328607996,1717603843519,-154.9690062,0.00020481,2]
[328607997,1717603843529,-240.953708,0.00020484,2]
[328607998,1717603843539,-1602.79516597,0.00021441,2]
[328607999,1717603843614,-5295.57047069,0.00021441,2]
[328608036,1717603846191,-1920.78352117,0.00021441,2]
[328608178,1717603953912,440.43606058,0.00020597,7]
[328608179,1717604012721,220.21803029,0.00020597,7]
[328608180,1717604072966,220.21803029,0.00020597,7]
[328608234,1717605032216,-155.0,0.00014775,2]
[328608235,1717605032225,-820.75,0.00014775,2]
[328608236,1717605032239,-1214.72539269,0.00014775,2]
[328608237,1717605032248,-212.57368425,0.00014776,2]
[328608238,1717605032257,-200.30096632,0.00014777,2]
[328608239,1717605032266,-1099.91705711,0.00015,2]
[328608240,1717605032275,-1099.91705711,0.00015,2]
[328608241,1717605032284,-150.0,0.000189,2]
[328608242,1717605032293,-302.2617366,0.00019178,2]
[328608243,1717605032302,-240.953708,0.00019305,2]
[328608244,1717605032311,-931.42086602,0.0002,2]
[328608245,1717605032320,-471.86986171,0.00020597,2]
[328608246,1717605032330,-24900.0,0.00020597,2]
[328608247,1717605032339,-681.57979116,0.00021095,2]
[328608248,1717605032348,-212.0,0.00021195,5]
[328608249,1717605032358,-3989.07453341,0.00021441,2]
[328608250,1717605032367,-212.0,0.00021858,5]
[328608251,1717605032376,-500.0,0.00021917,2]
[328608252,1717605032386,-166.666666,0.00021918,2]
[328608253,1717605032395,-166.666666,0.00021918,2]
[328608254,1717605032405,-107.84426229,0.00021924,2]
[328608255,1717605032417,-573.73552884,0.00021924,2]
[328608256,1717605032426,-500.0,0.00021999,2]
[328608257,1717605032436,-500.0,0.00021999,2]
[328608258,1717605032445,-1.72971001,0.00021999,2]
[328608414,1717605041718,-500.0,0.00021998,2]
[328608415,1717605041728,-498.27028999,0.00021999,2]
[328608416,1717605041738,-500.0,0.00021999,2]
[328608417,1717605041750,-2500.0,0.00022,2]
[328608418,1717605041759,-500.0,0.00022191,2]
[328608419,1717605041768,-618.39505404,0.00022273,2]
[328608420,1717605041778,-500.0,0.00022273,2]
[328608421,1717605041787,-500.0,0.00022273,2]
[328608422,1717605041796,-500.0,0.00022273,2]
[328608423,1717605041806,-166.666666,0.00022431,2]
[328608424,1717605041816,-500.0,0.00022461,2]
[328608425,1717605041826,-500.0,0.00022462,2]
[328608426,1717605041835,-615.67,0.00022462,2]
[328608427,1717605041844,-525.71487561,0.00022462,2]
[328608428,1717605041855,-500.0,0.00022462,2]
[328608429,1717605041864,-500.0,0.00022462,2]
[328608430,1717605041874,-500.0,0.00022462,2]
[328608431,1717605041883,-469.08159207,0.00022462,2]
[328608432,1717605041893,-500.0,0.00022462,2]
[328608433,1717605041903,-500.0,0.00022462,2]
[328608434,1717605041912,-553.99,0.00022462,2]
[328608435,1717605041922,-500.0,0.00022462,2]
[328608436,1717605041931,-500.0,0.00022462,2]
[328608437,1717605041941,-500.0,0.00022462,2]
[328608438,1717605041951,-500.0,0.00022463,2]
[328608439,1717605041960,-500.0,0.00022465,2]
[328608440,1717605041969,-212.0,0.00022521,5]
[328608441,1717605041979,-500.0,0.00022547,2]
[328608442,1717605041988,-500.0,0.00022547,2]
[328608443,1717605041999,-500.0,0.00022547,2]
[328608444,1717605042008,-500.0,0.00022735,2]
[328608445,1717605042017,-500.0,0.00022736,2]
[328608446,1717605042026,-500.0,0.00022736,2]
[328608447,1717605042035,-500.0,0.00022736,2]
[328608448,1717605042044,-500.0,0.00022736,2]
[328608449,1717605042054,-500.0,0.00022737,2]
[328608450,1717605042064,-500.0,0.00022739,2]
[328608451,1717605042073,-159.50085027,0.00022753,2]
[328608452,1717605042083,-681.57979113,0.00022754,2]
[328608453,1717605042092,-500.0,0.00022821,2]
[328608454,1717605042102,-500.0,0.00022821,2]
[328608455,1717605042111,-500.0,0.00022821,2]
[328608456,1717605042121,-166.666666,0.00022944,2]
[328608457,1717605042131,-500.0,0.00023009,2]
[328608458,1717605042141,-384.46882379,0.0002301,2]
[328608522,1717605043602,-115.53117621,0.0002301,2]
[328608524,1717605043612,-500.0,0.0002301,2]
[328608526,1717605043621,-500.0,0.0002301,2]
[328608528,1717605043632,-500.0,0.0002301,2]
[328608530,1717605043642,-500.0,0.00023013,2]
[328608531,1717605043651,-301.10547433,0.00023095,2]
[328608532,1717605043660,-500.0,0.00023095,2]
[328608533,1717605043669,-500.0,0.00023095,2]
[328608534,1717605043679,-212.0,0.00023185,5]
[328608535,1717605043689,-500.0,0.00023283,2]
[328608536,1717605043699,-500.0,0.00023284,2]
[328608537,1717605043708,-500.0,0.00023284,2]
[328608538,1717605043717,-500.0,0.00023284,2]
[328608539,1717605043726,-500.0,0.00023284,2]
[328608540,1717605043736,-500.0,0.00023287,2]
[328608541,1717605043747,-500.0,0.00023369,2]
[328608542,1717605043757,-484.40346021,0.00023369,2]
[328608543,1717605043766,-166.666666,0.00023456,2]
[328608544,1717605043776,-500.0,0.00023557,2]
[328608545,1717605043785,-500.0,0.00023558,2]
[328608547,1717605043795,-588.43468582,0.00023558,2]
[328608549,1717605043804,-500.0,0.00023558,2]
[328608551,1717605043814,-500.0,0.00023558,2]
[328608553,1717605043824,-500.0,0.00023561,2]
[328608555,1717605043833,-681.57979113,0.00023583,2]
[328608558,1717605043843,-500.0,0.00023643,2]
[328608561,1717605043852,-500.0,0.00023831,2]
[328608564,1717605043862,-500.0,0.00023832,2]
[328608567,1717605043871,-500.0,0.00023832,2]
[328608570,1717605043881,-500.0,0.00023832,2]
[328608572,1717605043890,-500.0,0.00023835,2]
[328608574,1717605043900,-212.0,0.00023848,7]
[328608576,1717605043910,-150.0,0.000239,2]
[328608578,1717605043919,-500.0,0.00023917,2]
[328608580,1717605043929,-166.666666,0.00023969,2]
[328608582,1717605043938,-241.31033918,0.00024104,2]
[328608604,1717605044132,-43.68966082,0.00024104,2]
[328608606,1717605044142,-500.0,0.00024105,2]
[328608608,1717605044152,-500.0,0.00024106,2]
[328608610,1717605044161,-500.0,0.00024106,2]
[328608612,1717605044170,-557.40129499,0.00024106,2]
[328608614,1717605044180,-500.0,0.00024109,2]
[328608616,1717605044190,-500.0,0.00024191,2]
[328608618,1717605044199,-500.0,0.00024379,2]
[328608620,1717605044209,-500.0,0.0002438,2]
[328608622,1717605044218,-500.0,0.0002438,2]
[328608624,1717605044227,-291.80215947,0.00024383,2]
[328609083,1717605963886,-154.829687,0.00029701,120]
[328609165,1717606232618,-212.57368425,0.00020552,2]
[328609167,1717606232627,-200.30096632,0.00020553,2]
[328609169,1717606232637,-154.98450155,0.00020554,2]
[328609171,1717606232647,-24900.0,0.00020597,2]
[328609182,1717606232783,-265.4218897,0.00020597,2]
[328609183,1717606232792,-151.0,0.00021623,5]
[328609185,1717606232802,-435.18196524,0.00021817,2]
[328609186,1717606232811,-1831.06120926,0.000219,2]
[328609661,1717606238454,-931.42086602,0.00020551,2]
[328609663,1717606238464,-1168.93879074,0.000219,2]
[328609664,1717606238474,-4758.079975,0.0002191,2]
[328609666,1717606238484,-500.0,0.00021917,2]
[328609668,1717606238493,-500.0,0.00021917,2]
[328609670,1717606238503,-500.0,0.00021917,2]
[328609672,1717606238512,-500.0,0.00021917,2]
[328609673,1717606238521,-547.59,0.00021917,2]
[328609675,1717606238532,-500.0,0.00021917,2]
[328609676,1717606238541,-500.0,0.00021917,2]
[328609677,1717606238551,-500.0,0.00021917,2]
[328609678,1717606238561,-500.0,0.00021917,2]
[328609679,1717606238570,-640.79444237,0.00021917,2]
[328609680,1717606238580,-166.666666,0.00021918,2]
[328609681,1717606238589,-792.07310973,0.00021918,2]
[328609682,1717606238605,-4650.98314617,0.00021918,2]
[328609683,1717606238615,-210.67690387,0.00021998,2]
[328609684,1717606238624,-500.0,0.00022191,2]
[328609685,1717606238633,-263.02765245,0.00022191,2]
[328609686,1717606238643,-500.0,0.00022191,2]
[328609687,1717606238652,-500.0,0.00022191,2]
[328609688,1717606238661,-151.0,0.00022309,5]
[328609689,1717606238671,-166.666666,0.00022431,2]
[328609690,1717606238681,-500.0,0.00022465,2]
[328609691,1717606238690,-500.0,0.00022465,2]
[328609692,1717606238700,-500.0,0.00022465,2]
[328609693,1717606238709,-435.1819652,0.00022543,2]
[328609694,1717606238718,-500.0,0.00022739,2]
[328609695,1717606238728,-500.0,0.00022739,2]
[328609696,1717606238737,-500.0,0.00022739,2]
[328609697,1717606238747,-166.666666,0.00022944,2]
[328609698,1717606238757,-151.0,0.00022996,5]
[328609699,1717606238766,-349.35420973,0.00023013,2]
[328609700,1717606238778,-500.0,0.00023013,2]
[328609701,1717606238787,-500.0,0.00023013,2]
[328609702,1717606238797,-78.53795665,0.00023269,2]
[328609703,1717606238809,-356.64400855,0.00023269,2]
[328609704,1717606238818,-500.0,0.00023287,2]
[328609705,1717606238828,-67.62837284,0.00023287,2]
[328609706,1717606238840,-432.37162716,0.00023287,2]
[328609707,1717606238849,-166.666666,0.00023456,2]
[328609708,1717606238859,-500.0,0.00023561,2]
[328609709,1717606238868,-500.0,0.00023561,2]
[328609710,1717606238878,-151.0,0.00023683,7]
[328609711,1717606238887,-159.86541143,0.0002375,2]
[328609712,1717606238897,-103.57463698,0.00023835,2]
[328609737,1717606242229,-396.42536302,0.00023835,2]
[328609738,1717606242238,-500.0,0.00023835,2]
[328609739,1717606242248,-500.0,0.00023848,2]
[328609740,1717606242258,-500.0,0.00023848,2]
[328609741,1717606242268,-500.0,0.00023848,2]
[328609742,1717606242279,-500.0,0.00023848,2]
[328609743,1717606242289,-500.0,0.00023848,2]
[328609744,1717606242298,-590.24218079,0.00023848,2]
[328609745,1717606242307,-500.0,0.00023849,2]
[328609746,1717606242317,-500.0,0.00023849,2]
[328609747,1717606242327,-500.0,0.00023849,2]
[328609748,1717606242336,-163.33333268,0.00023849,2]
[328609749,1717606242346,-500.0,0.00023849,2]
[328609750,1717606242357,-192.96702645,0.00023849,2]
[328609751,1717606242367,-6578.81712919,0.0002385,2]
[328609785,1717606243836,-293.26520376,0.0002385,2]
[328609786,1717606243849,-2614.1261312,0.0002385,2]
[328609787,1717606243860,-13155.23011549,0.0002385,2]
[328609788,1717606243870,-166.666666,0.00023969,2]
[328609789,1717606243879,-435.1819652,0.00023995,2]
[328609790,1717606243888,-2500.0,0.00024,2]
[328609791,1717606243897,-166.666666,0.00024,2]
[328609792,1717606243906,-500.0,0.00024109,2]
[328609793,1717606243915,-400.41977187,0.00024109,2]
[328609794,1717606243924,-500.0,0.00024123,2]
[328609795,1717606243933,-255.90907012,0.00024223,2]
[328609796,1717606243942,-151.0,0.0002437,7]
[328609797,1717606243951,-233.34652873,0.00024383,2]
[328609798,1717606243960,-617.43534339,0.00024383,2]
[328609799,1717606243969,-500.0,0.00024397,2]
[328609800,1717606243978,-400.42723491,0.00024481,2]
[328609805,1717606244034,-362.03215524,0.00024481,2]
[328609807,1717606244044,-166.666666,0.00024482,2]
[328609809,1717606244053,-500.0,0.00024671,6]
[328609811,1717606244062,-435.1819652,0.00024722,2]
[328609813,1717606244073,-66550.17058507,0.0002484,2]
[328609911,1717606246641,-26916.10721668,0.0002484,2]
[328609912,1717606246653,-313.56105252,0.0002484,2]
[328609913,1717606246665,-19039.05758227,0.0002484,2]
[328609914,1717606246677,-1923.28859129,0.0002484,2]
[328609915,1717606246689,-867.19,0.0002484,2]
[328609918,1717606268805,640.032,0.000155,10]
[328610048,1717607432792,-200.30096632,0.00014982,2]
[328610049,1717607432802,-212.57368425,0.00014983,2]
[328610050,1717607432812,-155.0,0.00014983,2]
[328610051,1717607432821,-931.42086602,0.0002,2]
[328610052,1717607432831,-24900.0,0.00020949,2]
[328610053,1717607432840,-3000.0,0.000219,2]
[328610054,1717607432850,-1477.17012861,0.0002191,2]
[328610055,1717607432862,-2125.14329539,0.0002191,2]
[328610056,1717607432872,-500.0,0.00021917,2]
[328610057,1717607432881,-500.0,0.00021917,2]
[328610058,1717607432891,-209.847378,0.00021918,2]
[328610059,1717607432900,-500.0,0.00022191,2]
[328610060,1717607432910,-539.20248461,0.00022465,2]
[328610061,1717607432919,-500.0,0.00022618,2]
[328610062,1717607432928,-500.0,0.00022618,2]
[328610063,1717607432937,-500.0,0.00022618,2]
[328610064,1717607432947,-500.0,0.00022618,2]
[328610065,1717607432957,-500.0,0.00022618,2]
[328610066,1717607432966,-500.0,0.00022618,2]
[328610067,1717607432975,-495.356842,0.00022618,2]
[328610387,1717607617279,10000.0,0.00029699,40]
[328610388,1717607674381,-151.0,0.00024221,7]
[328610389,1717607674402,-151.0,0.00024932,7]
[328610390,1717607674423,-342.14,0.0002499,3]
[328610391,1717607674444,-15355.86,0.0002499,3]
[328610972,1717608483246,-212.57368425,0.00014991,2]
[328610973,1717608483268,-200.30096632,0.00014991,2]
[328610974,1717608483290,-155.0,0.00014992,2]
[328611076,1717608637980,-525.56422798,0.00015,2]
[328611077,1717608637990,-474.11329135,0.00019999,2]
[328611078,1717608638002,-132.05701065,0.00019999,2]
[328611079,1717608638011,-931.42086602,0.00020563,2]
[328611080,1717608638020,-178.7,0.00020564,3]
[328611081,1717608638029,-178.7,0.00021013,5]
[328611082,1717608638038,-178.7,0.00021461,5]
[328611083,1717608638048,-150.0,0.000219,2]
[328611084,1717608638057,-178.7,0.0002191,5]
[328611085,1717608638066,-195.453807,0.00021918,2]
[328611087,1717608638076,-2231.91862998,0.00022258,2]
[328611876,1717608722469,20050.92458636,0.00029698,40]
[328611999,1717609771113,212.57368425,9.999e-05,2]
[328612003,1717609792676,200.30096632,9.999e-05,2]
[328612006,1717609801251,154.98450155,9.999e-05,2]
[328612031,1717609832182,-511.95293039,0.00018,2]
[328612106,1717609842264,-198.47997341,0.00018,2]
[328612107,1717609842274,-945.17260851,0.00018496,2]
[328612108,1717609842284,-606.170302,0.000185,2]
[328612109,1717609842293,-24900.0,0.00019067,2]
[328612110,1717609842303,-931.42086602,0.0002,2]
[328612111,1717609842313,-150.0,0.000219,2]
[328612112,1717609842322,-151.0,0.00021903,5]
[328612113,1717609842331,-181.77344248,0.00021918,2]
[328612349,1717609846222,-13.68036452,0.00021918,2]
[328612351,1717609846232,-504.643158,0.00021998,2]
[328612353,1717609846241,-392.72931506,0.00021998,2]
[328612355,1717609846250,-178.91919879,0.00021999,2]
[328612357,1717609846263,-500.0,0.00021999,2]
[328612359,1717609846273,-500.0,0.00021999,2]
[328612361,1717609846282,-500.0,0.00021999,2]
[328612363,1717609846291,-500.0,0.00021999,2]
[328612365,1717609846300,-500.0,0.00021999,2]
[328612367,1717609846309,-500.0,0.00021999,2]
[328612368,1717609846319,-500.0,0.00021999,2]
[328612370,1717609846328,-500.0,0.00021999,2]
[328612372,1717609846337,-500.0,0.00021999,2]
[328612375,1717609846346,-500.0,0.00021999,2]
[328612377,1717609846356,-500.0,0.00021999,2]
[328612378,1717609846365,-500.0,0.00021999,2]
[328612380,1717609846374,-500.0,0.00021999,2]
[328612382,1717609846383,-500.0,0.00021999,2]
[328612383,1717609846393,-500.0,0.00021999,2]
[328612384,1717609846402,-500.0,0.00021999,2]
[328612385,1717609846411,-647.58625155,0.00021999,2]
[328612386,1717609846421,-500.0,0.00021999,2]
[328612387,1717609846430,-500.0,0.00021999,2]
[328612388,1717609846439,-500.0,0.00021999,2]
[328612389,1717609846449,-500.0,0.00021999,2]
[328612390,1717609846458,-500.0,0.00021999,2]
[328612391,1717609846467,-553.99,0.00021999,2]
[328612392,1717609846476,-500.0,0.00021999,2]
[328612393,1717609846486,-500.0,0.00021999,2]
[328612394,1717609846495,-11365.95240278,0.00022,2]
[328612395,1717609846505,-177.9734871,0.00022173,2]
[328612396,1717609846515,-500.0,0.00022272,2]
[328612397,1717609846524,-500.0,0.00022272,2]
[328612398,1717609846534,-500.0,0.00022272,2]
[328612399,1717609846543,-500.0,0.00022272,2]
[328612400,1717609846552,-559.02421808,0.00022272,2]
[328612401,1717609846561,-437.87,0.00022273,2]
[328612403,1717609846570,-329.04,0.00022273,2]
[328612405,1717609846580,-500.0,0.00022273,2]
[328612407,1717609846589,-500.0,0.00022273,2]
[328612409,1717609846600,-442.74,0.00022273,2]
[328612411,1717609846609,-500.0,0.00022273,2]
[328612413,1717609846618,-500.0,0.00022273,2]
[328612415,1717609846627,-500.0,0.00022273,2]
[328612417,1717609846636,-500.0,0.00022273,2]
[328612419,1717609846645,-500.0,0.00022273,2]
[328612421,1717609846654,-500.0,0.00022273,2]
[328612422,1717609846663,-496.55,0.00022273,2]
[328612424,1717609846673,-500.0,0.00022273,2]
[328612427,1717609846683,-500.0,0.00022273,2]
[328612428,1717609846691,-500.0,0.00022273,2]
[328612430,1717609846700,-500.0,0.00022273,2]
[328612433,1717609846710,-500.0,0.00022273,2]
[328612434,1717609846719,-151.0,0.00022352,5]
[328612437,1717609846729,-500.0,0.00022547,2]
[328612439,1717609846738,-500.0,0.00022547,2]
[328612441,1717609846747,-554.76,0.00022547,2]
[328612443,1717609846758,-500.0,0.00022547,2]
[328612444,1717609846767,-500.0,0.00022547,2]
[328612446,1717609846776,-500.0,0.00022547,2]
[328612449,1717609846786,-500.0,0.00022547,2]
[328612450,1717609846795,-500.0,0.00022547,2]
[328612452,1717609846804,-6895.68318444,0.00022617,2]
[328612454,1717609846813,-151.0,0.00022802,5]
[328612456,1717609846824,-500.0,0.00022821,2]
[328612458,1717609846833,-500.0,0.00022821,2]
[328612460,1717609846842,-500.0,0.00022821,2]
[328612462,1717609846851,-500.0,0.00022821,2]
[328612464,1717609846859,-500.0,0.00022821,2]
[328612466,1717609846869,-444.81806662,0.00023095,2]
[328612468,1717609846878,-500.0,0.00023095,2]
[328612470,1717609846887,-500.0,0.00023095,2]
[328612472,1717609846896,-500.0,0.00023095,2]
[328612474,1717609846905,-153.0,0.00023178,2]
[328612476,1717609846914,-153.0,0.00023178,2]
[328612478,1717609846923,-151.0,0.00023251,5]
[328612480,1717609846932,-500.0,0.00023369,2]
[328612482,1717609846941,-244.89194327,0.00023369,2]
[328612484,1717609846950,-318.98671623,0.00023369,2]
[328612486,1717609846959,-500.0,0.00023643,2]
[328612488,1717609846968,-151.0,0.00023701,7]
[328612490,1717609846979,-151.0,0.00023701,7]
[328612492,1717609846987,-177.9734871,0.00023786,2]
[328612494,1717609846997,-212.57368425,0.00023916,2]
[328612496,1717609847008,-463.6,0.00023917,2]
[328612498,1717609847017,-166.666666,0.00024,2]
[328612500,1717609847026,-4802.545,0.00024,2]
[328612502,1717609847035,-151.0,0.0002415,7]
[328612504,1717609847044,-151.0,0.0002415,7]
[328612506,1717609847053,-762.45939015,0.000244,2]
[328612508,1717609847062,-195.453807,0.00024482,2]
[328612510,1717609847071,-151.0,0.000246,7]
[328612512,1717609847080,-151.0,0.000246,7]
[328612514,1717609847089,-151.0,0.00024648,2]
[328612516,1717609847099,-500.0,0.00024672,6]
[328612518,1717609847108,-37102.64018959,0.0002484,2]
[328612520,1717609847117,-500.0,0.00024899,2]
[328612522,1717609847126,-253.0001892,0.00024899,2]
[328612524,1717609847135,-270.0,0.000249,2]
[328612526,1717609847144,-500.0,0.00024946,6]
[328612528,1717609847153,-151.0,0.0002496,2]
[328612530,1717609847162,-151.0,0.0002496,2]
[328612532,1717609847171,-151.0,0.0002496,2]
[328612534,1717609847185,-32187.6,0.0002497,3]
[328612536,1717609847194,-151.0,0.0002497,2]
[328612537,1717609847203,-151.0,0.0002497,2]
[328612540,1717609847212,-500.0,0.00024979,2]
[328612542,1717609847223,-315.96494756,0.00024979,2]
[328612544,1717609847232,-260.48170104,0.00024979,2]
[328612545,1717609847241,-163.39502356,0.00024979,2]
[328612547,1717609847250,-354.80305225,0.00024979,2]
[328612549,1717609847262,-340.01285723,0.00024979,2]
[328612551,1717609847271,-411.24156106,0.00024979,2]
[328612553,1717609847281,-151.0,0.0002498,2]
[328612555,1717609847290,-151.0,0.0002498,2]
[328612557,1717609847299,-193.79105,0.0002498,2]
[328612559,1717609847308,-38625.12,0.0002498,3]
[328612561,1717609847317,-151.0,0.0002499,2]
[328612563,1717609847326,-151.0,0.0002499,2]
[328612565,1717609847336,-46350.14,0.0002499,3]
[328612568,1717609847345,-151.0,0.00024999,2]
[328612570,1717609847355,-17564.7075215,0.00025,7]
[328612572,1717609847365,-29187.82219523,0.00025,2]
[328612573,1717609847374,-43255.55536931,0.00025,2]
[328612575,1717609847383,-151.0,0.00025,2]
[328612578,1717609847393,-151.0,0.00025,2]
[328612580,1717609847402,-151.0,0.00025,2]
[328612582,1717609847411,-151.0,0.00025,2]
[328612584,1717609847420,-401.85050272,0.00025,2]
[328612586,1717609847430,-1103.12375551,0.00025,2]
[328612588,1717609847439,-151.0,0.00025049,7]
[328612590,1717609847449,-151.0,0.00025049,7]
[328612592,1717609847459,-177.9734871,0.00025398,2]
[328612594,1717609847469,-160.0,0.000254,2]
[328612596,1717609847478,-25000.0,0.000254,2]
[328612598,1717609847487,-589.0,0.000254,2]
[328612600,1717609847496,-19419.55003795,0.000254,3]
[328612602,1717609847508,-151.0,0.000254,2]
[328612604,1717609847517,-151.0,0.000254,2]
[328612606,1717609847526,-245.17999998,0.000254,2]
[328612608,1717609847535,-338.0,0.0002547,35]
[328612610,1717609847545,-338.0,0.0002548,35]
[328612612,1717609847554,-338.0,0.0002549,35]
[328612614,1717609847563,-237.09103521,0.00025498,2]
[328612616,1717609847572,-1689.50579785,0.00025498,2]
[328612618,1717609847582,-190.37021129,0.00025498,2]
[328612620,1717609847591,-302.73262901,0.00025498,2]
[328612622,1717609847600,-155.20300756,0.00025498,2]
[328612624,1717609847610,-181.82898436,0.00025498,2]
[328612626,1717609847619,-2035.47539269,0.00025498,2]
[328612628,1717609847628,-13616.40569681,0.00025498,2]
[328612630,1717609847637,-157.03130823,0.00025498,2]
[328612632,1717609847647,-275.3142072,0.00025498,2]
[328612634,1717609847656,-13654.96596348,0.00025498,2]
[328612636,1717609847666,-162.43681755,0.00025498,2]
[328612638,1717609847675,-5071.17910895,0.00025498,2]
[328612640,1717609847684,-2066.22102806,0.00025498,2]
[328612642,1717609847694,-1009.40059611,0.00025498,2]
[328612644,1717609847703,-151.0,0.00025498,2]
[328612646,1717609847712,-151.0,0.00025498,2]
[328612648,1717609847721,-1099.91705711,0.00025498,2]
[328612650,1717609847731,-200.30096632,0.00025498,2]
[328612652,1717609847741,-251.81611332,0.00025498,2]
[328612654,1717609847751,-272.3727093,0.00025499,2]
[328612655,1717609847763,-2096.08137509,0.00025499,2]
[328612658,1717609847772,-4622.2251243,0.00025499,2]
[328612659,1717609847782,-151.0,0.00025499,7]
[328612661,1717609847792,-151.0,0.00025499,7]
[328612664,1717609847802,-500.0,0.000255,2]
[328612666,1717609847811,-8377.00489136,0.000255,60]
[328613020,1717610395248,1096.78756551,0.00029716,40]
[328613152,1717611032446,-200.30096632,0.00021864,2]
[328613154,1717611032455,-606.170302,0.00021865,2]
[328613156,1717611032464,-710.4329038,0.00021866,2]
[328613158,1717611032473,-931.42086602,0.00021867,2]
[328613160,1717611032482,-212.57368425,0.00021867,2]
[328613162,1717611032491,-24900.0,0.00021893,2]
[328613163,1717611032500,-166.666666,0.0002276,2]
[328613165,1717611032509,-166.666666,0.00024,2]
[328613167,1717611032520,-762.45939015,0.000244,2]
[328613169,1717611032529,-1103.12375551,0.00025,2]
[328613171,1717611032538,-401.85050272,0.00025,2]
[328613173,1717611032547,-583.9417269,0.0002537,2]
[328613175,1717611032557,-153.0,0.0002537,2]
[328613177,1717611032567,-153.0,0.0002537,2]
[328613178,1717611032580,-153.0,0.0002537,2]
[328613181,1717611032594,-153.0,0.0002537,2]
[328613183,1717611032603,-153.0,0.0002537,2]
[328613185,1717611032612,-153.0,0.0002537,2]
[328613187,1717611032622,-153.0,0.0002537,2]
[328613189,1717611032632,-617.46,0.00025398,6]
[328613191,1717611032642,-500.0,0.00025398,6]
[328613193,1717611032651,-500.0,0.00025398,6]
[328613195,1717611032661,-500.0,0.00025398,6]
[328613197,1717611032670,-500.0,0.00025398,6]
[328613199,1717611032680,-558.88,0.00025398,6]
[328613201,1717611032690,-500.0,0.00025398,6]
[328613203,1717611032699,-500.0,0.00025398,6]
[328613205,1717611032709,-170.99396125,0.00025398,6]
[328613208,1717611032722,-329.00603875,0.00025398,6]
[328613210,1717611032731,-500.0,0.00025398,6]
[328613212,1717611032740,-500.0,0.00025398,6]
[328613213,1717611032749,-529.82,0.00025398,6]
[328613214,1717611032758,-500.0,0.00025398,6]
[328613215,1717611032768,-548.94,0.00025398,6]
[328613217,1717611032777,-544.45,0.00025398,6]
[328613219,1717611032787,-500.0,0.00025398,6]
[328613220,1717611032796,-500.0,0.00025398,6]
[328613221,1717611032806,-500.0,0.00025398,6]
[328613222,1717611032815,-500.0,0.00025399,6]
[328613223,1717611032824,-619.39,0.00025399,6]
[328613224,1717611032834,-532.28,0.00025399,6]
[328613225,1717611032843,-500.0,0.00025399,6]
[328613226,1717611032852,-500.0,0.00025399,6]
[328613227,1717611032861,-278.57990888,0.00025399,6]
[328613228,1717611032870,-315.43907049,0.00025399,6]
[328613229,1717611032883,-184.56092951,0.00025399,6]